Cogmind - Beta 13 @@@ ROGUE MODE // 2024.06.04 @ 13:07:06 // Winter2022/Polymind Player: Sparranova Result: Destroyed by S-10 Pest with Light Assault Rifle Performance ------------- Evolutions (0) 0 Regions Visited (2) 400 Robots Destroyed (12) 60 Value Destroyed (168) 168 Prototype IDs (0) 0 Alien Tech Used (0) 0 Bonus (1647) 1647 TOTAL SCORE: 2055 Bonus ------- Polymind Skill 1647 Cogmind --------- Core Integrity 0/250 Matter 77/100 Energy 215/215 System Corruption 6% Temperature Cool (0) Movement Treading (160) Location -10/Subcaves Parts ------- > --- POWER (1) -------- Improved Ion Engine > --- PROPULSION (2) --- Light Treads Light Treads > --- UTILITY (3) ------ Heat Sink Heat Sink > --- WEAPON (2) ------- Beam Rifle Heavy Assault Rifle > --- INVENTORY (1) ---- (None) Peak State ------------ > --- POWER ------------ Improved Ion Engine > --- PROPULSION ------- Light Treads Light Treads > --- UTILITY ---------- Heat Sink Heat Sink Light Armor Plating > --- WEAPON ----------- Beam Rifle Heavy Assault Rifle > --- INVENTORY -------- (None) [Rating: 11] Favorites ----------- Power Light Ion Engine Engine Light Ion Engine Propulsion Light Treads Treads Light Treads Leg Aluminum Leg Wheel Wheel Flight Unit Flight Unit Utility Heat Sink Device Heat Sink Storage Small Storage Unit Protection Light Armor Plating Weapon Beam Rifle Energy Gun Beam Rifle Ballistic Gun Heavy Assault Rifle Special Weapon Mining Laser Build | -11 -10 -10 ------- Run | Yrd Mat Sub Slots Evolved . | . . . Power . | . . . Propulsion . | . . . Utility . | . . . Weapon . | . . . Parts Attached . | . . . Power . | . . . Engine . | . . . Core . | . . . Reactor . | . . . Propulsion . | . . . Treads . | . . . Leg . | . . . Wheel . | . . . Hover . | . . . Flight . | . . . Utility . | . . . Device . | . . . Storage . | . . . Processor . | . . . Hackware . | . . . Protection . | . . . Artifact . | . . . Weapon . | . . . Energy Gun . | . . . Energy Cannon . | . . . Ballistic Gun . | . . . Ballistic Cannon . | . . . Launcher . | . . . Special Weapon . | . . . Impact Weapon . | . . . Slashing Weapon . | . . . Piercing Weapon . | . . . Special Melee Weapon . | . . . Unidentified Prototypes . | . . . Parts Lost 2 | . 1 1 Power . | . . . Propulsion 1 | . 1 . Utility 1 | . . 1 Weapon . | . . . Highest Loss Streak 1 | . 1 1 To Critical Strikes . | . . . Average Slot Usage (%) 96 | . 96 97 Engine 18 | . 20 11 Treads 7 | . . 23 Leg 7 | . 11 . Wheel 11 | . 16 . Flight 8 | . 12 . Device 17 | . 14 24 Storage 4 | . 6 . Protection 3 | . . 11 Energy Gun 7 | . 5 11 Ballistic Gun 8 | . 7 11 Special Weapon 1 | . 2 . Naked Turns 13 | . 5 8 Heaviest Build 18 | 4 9 18 Greatest Support 40 | 20 32 40 Greatest Overweight (x) . | . . . Average Overweight (x) . | . . . Largest Inventory Capacity 4 | . 4 1 Average Capacity 1 | . 1 . Most Carried 4 | . 4 . Average Carried . | . . . Final Capacity 1 | 1 . 1 Final Carried . | . . . Class Distribution -------------------- 29% | Sentry 19% | Swarmer 18% | Grunt 15% | Recycler 9% | Tunneler 5% | Worker Dominant Class ---------------- Swarmer | -10/Materials Sentry | -10/Subcaves Resources | -11 -10 -10 ----------- Run | Yrd Mat Sub Matter Collected 99 | . 67 32 Remotely . | . . . Salvage Created 221 | . 143 78 Parts 21 | . 16 5 Haulers Intercepted . | . . . Recyclers Shooed . | . . . Parts Field Recycled . | . . . Retrieved Matter . | . . . Parts Self-Destructed 4 | . . 4 Prevented . | . . . Kills | -11 -10 -10 ------- Run | Yrd Mat Sub Combat Hostiles Destroyed 9 | . 7 2 Guns 9 | . 7 2 Classes Destroyed 3 | . 2 1 Watcher 3 | . 3 . Swarmer 8 | . 7 1 Subdweller 1 | . . 1 Best Kill Streak 3 | . 3 1 Combat Bots Only 2 | . 2 1 Max Kills in Single Turn 1 | . 1 1 Gunslinging . | . . . Exploded . | . . . Melee . | . . . Uniques/NPCs Destroyed . | . . . Combat | -11 -10 -10 -------- Run | Yrd Mat Sub Hostile Shots Fired 73 | . 48 25 Missed 21 | . 18 3 Damage Taken 588 | . 274 314 Core 254 | . 109 145 Absorbed by Shields . | . . . Core Remaining (%) 100 | 100 . . Volleys Fired 59 | . 52 7 Largest 2 | . 1 2 Hottest 79 | . 40 79 Shots Fired 68 | . 54 14 Gun 68 | . 54 14 Cannon . | . . . Launcher . | . . . Special . | . . . Kinetic 55 | . 48 7 Thermal 13 | . 6 7 Explosive . | . . . Electromagnetic . | . . . Robot Hit Streak 7 | . 7 6 Robot Miss Streak 4 | . 3 4 Penetration Max . | . . . Secondary Targets . | . . . Shots Hit Robots 41 | . 32 9 Core Hits 18 | . 15 3 Critical Kills 1 | . 1 . Critical Parts Destroyed . | . . . Critical Strikes 2 | . 1 1 Burn 1 | . . 1 Destroy 1 | . 1 . Melee Attacks . | . . . Impact . | . . . Slashing . | . . . Piercing . | . . . Sneak Attacks . | . . . Combat Hostiles . | . . . Follow-up Attacks . | . . . Damage Inflicted 428 | . 262 166 Guns 397 | . 262 135 Cannons . | . . . Explosions . | . . . Melee . | . . . Ramming 31 | . . 31 Kinetic 314 | . 239 75 Thermal 83 | . 23 60 Explosive . | . . . Electromagnetic . | . . . Impact . | . . . Slashing . | . . . Piercing . | . . . Highest Corruption 6 | . 5 6 Average Corruption 5 | . 4 5 Corruption Purged . | . . . Corruption Blocked . | . . . Effects 19 | . 9 10 Message Errors 4 | . 3 1 Matter Fused 6 | . 2 4 Heat Flow Errors 2 | . . 2 Energy Discharges 2 | . . 2 Data Loss (minor) 2 | . 1 1 Data Loss (major) 1 | . 1 . Misfires 2 | . 2 . Overload Shots . | . . . Overflow Damage . | . . . Projectiles . | . . . Explosions . | . . . Melee . | . . . Knockbacks . | . . . Impact . | . . . Kinetic . | . . . Secondary . | . . . Self-Inflicted Damage 15 | . . 15 Shots . | . . . Rammed 7 | . . 7 Targets Rammed 7 | . . 7 Kicked . | . . . Crushed . | . . . Highest Temperature 184 | . 19 184 Average Temperature 17 | . 9 75 Received Heat Transfer 42 | . 6 36 Siege Activations . | . . . Robots Corrupted . | . . . Combat Hostiles . | . . . Parts Fried . | . . . Impact Corruptions . | . . . Robots Melted . | . . . Combat Hostiles . | . . . Parts Melted . | . . . Heat Transferred 272 | . 50 222 Parts Sabotaged . | . . . Parts Stolen . | . . . Parts Stripped . | . . . Power Chain Reactions . | . . . Alert | -11 -10 -10 ------- Run | Yrd Mat Sub Peak Influence 368 | . 368 . Initial . | . . . Average 202 | . 229 . Maximum Alert Level 1 | . 1 . Low Security (%) 40 | 100 32 . Level 1 59 | . 67 . Level 2 . | . . . Level 3 . | . . . Level 4 . | . . . Level 5 . | . . . High Security . | . . . Max Security . | . . . Squads Dispatched 1 | . 1 . Investigation . | . . . Extermination . | . . . Reinforcement 1 | . 1 . Assault . | . . . Garrison . | . . . Intercept . | . . . Searches Triggered . | . . . Construction Impeded . | . . . Haulers Reinforced . | . . . Active Scanning Responses . | . . . Cargo Convoy Interrupts . | . . . Stealth | -11 -10 -10 --------- Run | Yrd Mat Sub Distress Signals 1 | . 1 . Communications Jammed . | . . . Distress Signals . | . . . Times Spotted 32 | . 28 4 Peak Tracking Total 6 | . 6 2 Tactical Retreats 2 | . 2 . Traps | -11 -10 -10 ------- Run | Yrd Mat Sub Traps Triggered 5 | . 4 1 Indirectly . | . . . Trap Hack Attempts . | . . . Triggered . | . . . Disarmed . | . . . Reprogrammed . | . . . Reused . | . . . Traps Extracted . | . . . Installed . | . . . Triggered . | . . . Machines | -11 -10 -10 ---------- Run | Yrd Mat Sub Machines Disabled . | . . . Max in Single Turn . | . . . Machines Repaired . | . . . Machines Dismantled . | . . . Machines Sabotaged . | . . . Overloaded Fab Kills . | . . . Hacking | -11 -10 -10 --------- Run | Yrd Mat Sub Machines Accessed 7 | . 7 . Terminals 5 | . 5 . Fabricators . | . . . Repair Stations 1 | . 1 . Recycling Units 1 | . 1 . Scanalyzers . | . . . Garrison Access . | . . . Total Hacks 15 | . 15 . Successful 10 | . 10 . Failed 5 | . 5 . Catastrophic 1 | . 1 . Database Lockouts . | . . . Manual 15 | . 15 . Terminals 11 | . 11 . Fabricators . | . . . Repair Stations 2 | . 2 . Recycling Units 2 | . 2 . Scanalyzers . | . . . Garrison Access . | . . . Terminal Hacks 1 | . 1 . Zone Layout 1 | . 1 . Fabricator Hacks . | . . . Repair Station Hacks . | . . . Recycling Unit Hacks . | . . . Scanalyzer . | . . . Garrison Access Hacks . | . . . Unauthorized Hacks 9 | . 9 . Terminals 6 | . 6 . Track 1 | . 1 . Assimilate 2 | . 2 . Botnet 2 | . 2 . Operators 1 | . 1 . Fabricators . | . . . Repair Stations 1 | . 1 . Mechanics 1 | . 1 . Recycling Units 2 | . 2 . Reject 1 | . 1 . Recyclers 1 | . 1 . Scanalyzers . | . . . Garrison Access . | . . . Data Cores Recovered . | . . . Used . | . . . Hacking Detections 6 | . 6 . Full Trace Events . | . . . Feedback Events . | . . . Feedback Blocked . | . . . Robot Schematics Acquired . | . . . Robots Built . | . . . Authchips . | . . . Time . | . . . Total Robot Build Rating . | . . . Part Schematics Acquired . | . . . Parts Built . | . . . Authchips . | . . . Time . | . . . Total Part Build Rating . | . . . Parts Repaired . | . . . Time . | . . . Parts Recycled . | . . . Recycled Matter . | . . . Retrieved Matter . | . . . Retrieved Components . | . . . Parts Scanalyzed . | . . . Part Schematics Acquired . | . . . Parts Damaged . | . . . Bothacking | -11 -10 -10 ------------ Run | Yrd Mat Sub Used RIF Installer . | . . . Robots Hacked 5 | . 4 1 Non-combat 1 | . 1 . Combat 4 | . 3 1 Robot Hacks Applied 5 | . 4 1 find_recycling 1 | . 1 . find_shortcuts 4 | . 3 1 Relay Couplers Released . | . . . Fabnet Peak Effective % . | . . . Robots Rewired . | . . . Allies Hacked . | . . . Hacks Repelled . | . . . Allies | -11 -10 -10 -------- Run | Yrd Mat Sub Total Allies 1 | . 1 . Largest Group 1 | . 1 . Highest-Rated Group 10 | . 10 . Highest-Rated Ally 10 | . 10 . Total Orders . | . . . Ally Attacks . | . . . Total Damage . | . . . Kills . | . . . Allies Corrupted . | . . . Allies Melted . | . . . Intel | -11 -10 -10 ------- Run | Yrd Mat Sub Robot Analysis Total 6 | 1 4 1 Derelict Logs Recovered . | . . . Drone Launches . | . . . Drone Recoveries . | . . . Exploration | -11 -10 -10 ------------- Run | Yrd Mat Sub Turns Passed 1360 | 115 859 386 Spaces Moved 1023 | 17 774 232 Core 30 | 16 11 3 Treads 219 | . . 219 Legs 59 | . 59 . Wheels 362 | 1 351 10 Hover . | . . . Flight 353 | . 353 . Fastest Speed 37 | 50 37 50 Average Speed 87 | 51 68 155 Slowest Speed 160 | 80 120 160 Overloaded Moves . | . . . Propulsion Burnouts . | . . . Robots Hopped 1 | . 1 . Cave-ins Triggered . | . . . Exploration Rate (%) 37 | 4 85 22 Regions Visited 2 Branch Regions 1 Pre-discovered Areas . | . . . Known Exits Taken . | . . . Unknown Exits Taken 2 | 1 1 . Scrap Searched . | . . . Spaces Dug . | . . . Terrain Destroyed . | . . . Melee . | . . . Projectile . | . . . AOE . | . . . Terrain Rammed . | . . . Walls Destroyed . | . . . Machines Disabled . | . . . Actions | -11 -10 -10 --------- Run | Yrd Mat Sub Total 1431 | 123 1062 246 Wait 290 | 107 183 . Move 1019 | 16 771 232 Hop 1 | . 1 . Pick Up 7 | . 7 . Fast Attach . | . . . Attach . | . . . Detach . | . . . Swap . | . . . Drop . | . . . Fire 59 | . 52 7 Melee . | . . . Ram 7 | . . 7 Kick . | . . . Crush . | . . . Escape Stasis . | . . . Rewire . | . . . Trap . | . . . Miscellaneous 48 | . 48 . Route ------- -11/Scrapyard -10/Materials (discovered 4 exits: [*Mat x2] / [*Min] / [*Sub]) -10/Subcaves (discovered 1 exit: [*Mat]) History --------- Turn | Location | Event 3 | -11/Scrapyard | Discovered new exit (range 15) 116 | -11/Scrapyard | Entered Materials 208 | -10/Materials | Discovered new exit (range 15) 403 | -10/Materials | Discovered new exit (range 9) 649 | -10/Materials | Discovered new exit (range 13) 919 | -10/Materials | Discovered new exit (range 3) 975 | -10/Materials | Entered Subcaves 980 | -10/Subcaves | Discovered new exit (range 5) 986 | -10/Subcaves | Core integrity fell below 50% 1156 | -10/Subcaves | Core integrity fell below 20% 1361 | -10/Subcaves | Destroyed by S-10 Pest with Light Assault Rifle Last Messages --------------- 01108_ System corrupted: Energy discharge (-55). 01144_ System corrupted: Energy discharge (-45). 01155_ Triggered Shrapnel Trap. 01155_ An expanding cloud of shrapnel blasts out in all directions. 01168_ System corrupted: Matter fused (-5). 01171_ FV-0WW(R) destroyed. 01174_ Acquired 24 matter. 01181_ Subatomizers dissect the Disposable Heat Sink. 01208_ System corrupted: Component data lost. 01231_ System corrupted: Heat flow error (+231). 01248_ P 7SR4EOJJIMGNMXVSTHW8BEVRFWKT 01329_ System corrupted: Matter fused (-10). 01345_ System corrupted: Heat flow error (+120). 01348_ S-10 Pest destroyed. 01351_ S-10 Pest suffers critical hit (Burn). 01354_ Lgt. Armor Plating destroyed. 01361_ Lgt. Assault Rifle fries itself beyond repair. Map ----- +----------------------------------------------------+ | ?????????????????????????????????### ### | | ???????????????????????????????????## | | ????????????????????????????????????# # | | ????????????????????????????????????# # | | ???????????????????????????????????# | | ???????????????????????????????????## # | | ???????????????????????????????????# ##### | | ??????????????????????????????????# ###???## | | ????????????????????????????????? ???????## | | ??????????????????????????????? ????????# | | ?????????????????????????????? ## ###????????## | | ????????????????????????????? ??###????????????? | | ????????????????????????????? ??????????????????? | | ????????????????????????????????????????????????? | | ????????????????????????????????????????????????? | | ??????????????##????????????????????????????????? | | ??????????????# ???????????????????????????????? | | ??????????????# ??????????????????????????????? | | ??????????????# #?????????????????????????????? | | ??????????????# #?????????????????????????#??? | | ??????????????# #???????????????????????# ?? | | ???????????????? ?????????????????##### ?? | | ?????????????????? ????????????????# ??# | | ???????????????????# #??????????????## ???# | | ????????????????????# ##????#######?# #???# | | ?????????????????????#s Y###### ### ###?? | | ?????????????????????# % ## ##? | | ????????????????????## = s # ## | | ????????????????????# ## #?# # | | ?????????????????# ## ### #??# # | | ????????????????# ### ### #### # | | ????????????????# ### # # | | ????????????????## #?# | | ?????????????????# ## #?# | | ????????????????# #?### ##?# ###### ## | | ????????????????#####????####??###????###### # | | ???????????????????????????????????????????# # | | ??????????????????????????????????????????# | | ??????????????????????????????????????????## | | ???????????????????????????????????????????## | | ????????????????????????????????????????????##### | | ????????????????????????????????????????????????? | | ????????????????????????????????????????????????? | | ????????????????????????????????????????????????? | | ????????????????????????????????????????????????? | | ????????????????????????????????????????????????? | | ????????????????????????????????????????????????? | | ????????????????????????????????????????????????? | | ????????????????????????????????????????????????? | | ????????????????????????????????????????????????? | +----------------------------------------------------+ Best States ------------- Heat Dissipation 36 Energy Generation 17 Energy Capacity 215 Matter Stores 100 Matter Capacity 100 Sight Range 16 Terrain Scan Range 16 Terrain Scan Density 10 Armor Coverage 150 Resistance: EX 50 Resistance: I 25 Evasion (%) 62 Recoil Reduction 2 Item Schematics ----------------- None Robot Schematics ------------------ None Fabricated ------------ Nothing Alien Tech Used ----------------- None Achievements -------------- None Challenges ------------ None Polymind | -11 -10 -10 ---------- Run | Yrd Mat Sub Hosts 7 | 1 5 1 Combat Hostiles 4 | . 3 1 Allies . | . . . Unique Host Classes 6 | 1 4 1 Average Host Suspicion 54 | . 74 8 Unsuspicious Activity 319 | 2 296 21 Returns to Shadow 2 | . 2 . Fuzzy Dispatches . | . . . Protomatter Created 71 | . 11 60 Used 65 | 5 37 23 Decayed 65 | . 8 57 Highest Spend 23 | 5 15 23 Top 5 Hosts by Kills: S-10 Pest (-10/Materials: 4) S-10 Pest (-10/Materials: 2) Y-45 Defender (-10/Subcaves: 2) G-34 Mercenary (-10/Materials: 1) Game ------ Seed 80085 Manual? 1 Play Time 00:13:57 Cumulative 176.3 hours Start 2024.06.04 @ 12:54:39 End 2024.06.04 @ 13:07:06 Sessions 1 Manual Loads 0 Difficulty Rogue Special Mode Winter2022/Polymind Game No. 32 Rogue 18 Adventurer 0 Explorer 14 Win Type - Total 2 Types 0/0/0/0/0/0/0/2/0 Lore% 40 Gallery% 55 Achievement% 54 Wizard Run 0 Options --------- Layout 2 ASCII 0 Keyboard 0 Movement Mouse Keybinds 0 Fullscreen 1 Font 24/Smallcaps Map View 50x44 Zoom Use 0% Tactical HUD 1 Map Filters NONE Filters NONE Steam 1 RUN: 56dbbb7f-9b63-4fce-a9de-de1dff6dfc76